[Event "2026 Biel Blitz Open"]
[Site "Biel, CH"]
[Date "2026.07.19"]
[Round "10"]
[White "Jelicic, Hugo"]
[Black "Koehler, Noe"]
[Result "1-0"]
[Board "47"]
[TimeControl "180+2"]
[WhiteFideId "1349040"]
[BlackFideId "1362488"]
[WhiteElo "1804"]
[BlackElo "1639"]
[WhiteClock "0:00:25"]
[BlackClock "0:00:08"]
[Variant "Standard"]
[EndDate "2026.07.19"]
[EndTime "14:58:39"]

1. d4 {[%clk 0:03:01]}  d5 {[%clk 0:03:03]} 2. Nf3 {[%clk 0:03:02]}  Nf6 {[%clk 0:03:05]} 3. c4 {[%clk 0:03:02]}  e6 {[%clk 0:03:06]}
4. Nc3 {[%clk 0:03:01]}  Be7 {[%clk 0:03:06]} 5. Bf4 {[%clk 0:03:00]}  Nbd7 {[%clk 0:02:56]} 6. e3 {[%clk 0:03:01]}  b6 {[%clk 0:02:56]}
7. cxd5 {[%clk 0:02:58]}  Nxd5 {[%clk 0:02:51]} 8. Nxd5 {[%clk 0:02:58]}  exd5 {[%clk 0:02:53]} 9. Bd3 {[%clk 0:02:48]}  Nf6 {[%clk 0:02:50]}
10. O-O {[%clk 0:02:44]}  O-O {[%clk 0:02:50]} 11. Ne5 {[%clk 0:02:31]}  Bb7 {[%clk 0:02:27]} 12. Rc1 {[%clk 0:02:31]}  Rc8 {[%clk 0:02:28]}
13. Qa4 {[%clk 0:02:32]}  a6 {[%clk 0:01:48]} 14. Nc6 {[%clk 0:02:22]}  Bxc6 {[%clk 0:01:43]} 15. Rxc6 {[%clk 0:02:09]}  Nh5 {[%clk 0:01:30]}
16. Be5 {[%clk 0:01:55]}  f6 {[%clk 0:01:19]} 17. Qd1 {[%clk 0:01:19]}  fxe5 {[%clk 0:01:09]} 18. Qxh5 {[%clk 0:01:19]}  e4 {[%clk 0:01:00]}
19. Bxa6 {[%clk 0:01:10]}  Ra8 {[%clk 0:00:47]} 20. Be2 {[%clk 0:00:57]}  Rxa2 {[%clk 0:00:47]} 21. Rb1 {[%clk 0:00:55]}  Qd7 {[%clk 0:00:39]}
22. Bb5 {[%clk 0:00:40]}  Rf5 {[%clk 0:00:11]} 23. Qh3 {[%clk 0:00:28]}  Bd6 {[%clk 0:00:04]} 24. Rxd6 {[%clk 0:00:25]}  Qxd6 {[%clk 0:00:04]}
25. Qxf5 {[%clk 0:00:25]}  c6 {[%clk 0:00:04]} 26. Qc8+ {[%clk 0:00:25]}  Qf8 {[%clk 0:00:06]} 27. Qxc6 {[%clk 0:00:25]}  Ra8 {[%clk 0:00:05]}
28. Qxd5+ {[%clk 0:00:22]}  Kh8 {[%clk 0:00:06]} 29. Qxe4 {[%clk 0:00:25]}  Rc8 {[%clk 0:00:07]} 30. Bc6 {[%clk 0:00:25]}  Rc7 {[%clk 0:00:08]}
31. d5 {[%clk 0:00:26]}  Qc8 {[%clk 0:00:08]} 32. Ra1 {[%clk 0:00:25]} 1-0

[Event "2026 Biel Blitz Open"]
[Site "Biel, CH"]
[Date "2026.07.19"]
[Round "10"]
[White "Langner, Robin"]
[Black "Bujes, Aurelien"]
[Result "1-0"]
[Board "48"]
[TimeControl "180+2"]
[WhiteFideId "34606190"]
[BlackFideId "1347179"]
[WhiteElo "2059"]
[BlackElo "1741"]
[WhiteClock "0:00:23"]
[BlackClock "0:03:02"]
[Variant "Standard"]
[EndDate "2026.07.19"]
[EndTime "14:58:19"]

1. d4 {[%clk 0:03:01]}  Nf6 {[%clk 0:03:03]} 2. c4 {[%clk 0:03:02]}  c5 {[%clk 0:03:04]} 3. d5 {[%clk 0:03:03]}  b5 {[%clk 0:03:05]}
4. cxb5 {[%clk 0:03:03]}  a6 {[%clk 0:03:06]} 5. e3 {[%clk 0:03:04]}  axb5 {[%clk 0:03:07]} 6. Bxb5 {[%clk 0:03:05]}  Ba6 {[%clk 0:03:08]}
7. Bxa6 {[%clk 0:03:04]}  Nxa6 {[%clk 0:03:08]} 8. Nf3 {[%clk 0:03:04]}  g6 {[%clk 0:03:05]} 9. O-O {[%clk 0:03:03]}  Bg7 {[%clk 0:03:06]}
10. Nc3 {[%clk 0:03:03]}  O-O {[%clk 0:03:04]} 11. Nd2 {[%clk 0:02:53]}  d6 {[%clk 0:03:04]} 12. Nc4 {[%clk 0:02:58]}  Nb4 {[%clk 0:02:56]}
13. e4 {[%clk 0:02:48]}  Qc7 {[%clk 0:02:46]} 14. Re1 {[%clk 0:02:47]}  Nd7 {[%clk 0:02:38]} 15. Bf4 {[%clk 0:02:34]}  Rfb8 {[%clk 0:02:21]}
16. a3 {[%clk 0:02:31]}  Na6 {[%clk 0:02:03]} 17. Qd2 {[%clk 0:02:15]}  Qb7 {[%clk 0:01:51]} 18. Rad1 {[%clk 0:01:48]}  Nc7 {[%clk 0:01:47]}
19. e5 {[%clk 0:01:22]}  Ne8 {[%clk 0:01:06]} 20. exd6 {[%clk 0:01:02]}  exd6 {[%clk 0:00:58]} 21. Rxe8+ {[%clk 0:00:51]}  Rxe8 {[%clk 0:00:57]}
22. Nxd6 {[%clk 0:00:52]}  Bxc3 {[%clk 0:00:45]} 23. Qxc3 {[%clk 0:00:48]}  Qa6 {[%clk 0:00:34]} 24. Nxe8 {[%clk 0:00:40]}  Rxe8 {[%clk 0:00:35]}
25. Bh6 {[%clk 0:00:38]}  f6 {[%clk 0:00:32]} 26. Re1 {[%clk 0:00:33]}  Qc8 {[%clk 0:00:24]} 27. Bf4 {[%clk 0:00:23]}  Kf7 {[%clk 0:00:20]}
28. Rxe8 {[%clk 0:00:23]}  Qxe8 {[%clk 0:00:20]} 29. Qe3 {[%clk 0:00:23]}  f5 {[%clk 0:00:11]} 30. Qxe8+ {[%clk 0:00:21]}  Kxe8 {[%clk 0:00:12]}
31. f3 {[%clk 0:00:22]}  Kd8 {[%clk 0:00:12]} 32. Kf2 {[%clk 0:00:23]}  Kc8 {[%clk 0:00:11]} 33. Ke3 {[%clk 0:00:23]}  Kb7 {[%clk 0:00:12]}
34. Kd3 {[%clk 0:00:22]}  Kb6 {[%clk 0:00:13]} 35. Kc4 {[%clk 0:00:21]}  h5 {[%clk 0:00:09]} 36. Bd6 {[%clk 0:00:21]}  g5 {[%clk 0:00:04]}
37. g3 {[%clk 0:00:22]}  g4 {[%clk 0:00:04]} 38. f4 {[%clk 0:00:23]}  Nf6 {[%clk 0:03:02]} 1-0

[Event "2026 Biel Blitz Open"]
[Site "Biel, CH"]
[Date "2026.07.19"]
[Round "10"]
[White "Chantrell, Paul"]
[Black "Marinkovic, Zoran"]
[Result "0-1"]
[Board "49"]
[TimeControl "180+2"]
[WhiteFideId "451967"]
[BlackFideId "1346083"]
[WhiteElo "1749"]
[BlackElo "2037"]
[WhiteClock "0:00:09"]
[BlackClock "0:00:29"]
[Variant "Standard"]
[EndDate "2026.07.19"]
[EndTime "15:06:16"]

1. e4 {[%clk 0:03:03]}  c5 {[%clk 0:03:03]} 2. Nf3 {[%clk 0:03:04]}  d6 {[%clk 0:03:05]} 3. d4 {[%clk 0:03:05]}  cxd4 {[%clk 0:03:06]}
4. Nxd4 {[%clk 0:03:06]}  Nf6 {[%clk 0:03:08]} 5. Nc3 {[%clk 0:03:06]}  Nc6 {[%clk 0:03:09]} 6. Bg5 {[%clk 0:03:03]}  Qb6 {[%clk 0:02:59]}
7. Nb3 {[%clk 0:02:25]}  e6 {[%clk 0:02:51]} 8. Qd2 {[%clk 0:02:16]}  Bd7 {[%clk 0:02:37]} 9. O-O-O {[%clk 0:02:10]}  Rd8 {[%clk 0:02:07]}
10. f3 {[%clk 0:01:53]}  Be7 {[%clk 0:02:04]} 11. Be3 {[%clk 0:01:51]}  Qc7 {[%clk 0:01:42]} 12. Nb5 {[%clk 0:01:46]}  Qb8 {[%clk 0:01:41]}
13. Nxd6+ {[%clk 0:01:41]}  Bxd6 {[%clk 0:01:30]} 14. Qxd6 {[%clk 0:01:35]}  Qxd6 {[%clk 0:01:29]} 15. Rxd6 {[%clk 0:01:36]}  O-O {[%clk 0:01:28]}
16. Bb5 {[%clk 0:01:21]}  Bc8 {[%clk 0:01:27]} 17. Rxd8 {[%clk 0:01:09]}  Rxd8 {[%clk 0:01:28]} 18. Bxc6 {[%clk 0:01:08]}  bxc6 {[%clk 0:01:29]}
19. Bg5 {[%clk 0:01:06]}  Rd7 {[%clk 0:01:11]} 20. Nc5 {[%clk 0:00:58]}  Rd4 {[%clk 0:01:10]} 21. Bxf6 {[%clk 0:00:55]}  gxf6 {[%clk 0:01:11]}
22. Rd1 {[%clk 0:00:54]}  Rxd1+ {[%clk 0:01:11]} 23. Kxd1 {[%clk 0:00:55]}  Kf8 {[%clk 0:01:11]} 24. Kd2 {[%clk 0:00:49]}  Ke7 {[%clk 0:01:09]}
25. Ke3 {[%clk 0:00:48]}  Kd6 {[%clk 0:01:12]} 26. Nb3 {[%clk 0:00:46]}  e5 {[%clk 0:01:05]} 27. Nd2 {[%clk 0:00:41]}  Ba6 {[%clk 0:01:04]}
28. c4 {[%clk 0:00:39]}  Ke6 {[%clk 0:01:06]} 29. b3 {[%clk 0:00:39]}  f5 {[%clk 0:01:06]} 30. g3 {[%clk 0:00:38]}  f6 {[%clk 0:01:04]}
31. Kd3 {[%clk 0:00:38]}  h5 {[%clk 0:00:58]} 32. h4 {[%clk 0:00:38]}  c5 {[%clk 0:00:51]} 33. Nf1 {[%clk 0:00:37]}  f4 {[%clk 0:00:46]}
34. gxf4 {[%clk 0:00:35]}  exf4 {[%clk 0:00:47]} 35. Nd2 {[%clk 0:00:31]}  Bb7 {[%clk 0:00:48]} 36. Nb1 {[%clk 0:00:28]}  f5 {[%clk 0:00:47]}
37. Nc3 {[%clk 0:00:28]}  Ke5 {[%clk 0:00:45]} 38. exf5 {[%clk 0:00:25]}  Bxf3 {[%clk 0:00:44]} 39. f6 {[%clk 0:00:22]}  Kxf6 {[%clk 0:00:44]}
40. Ne4+ {[%clk 0:00:21]}  Kf5 {[%clk 0:00:33]} 41. Nxc5 {[%clk 0:00:20]}  Kg4 {[%clk 0:00:33]} 42. Ne6 {[%clk 0:00:20]}  Bc6 {[%clk 0:00:29]}
43. b4 {[%clk 0:00:17]}  f3 {[%clk 0:00:30]} 44. Ke3 {[%clk 0:00:16]}  Kxh4 {[%clk 0:00:30]} 45. Nd4 {[%clk 0:00:16]}  Kg3 {[%clk 0:00:23]}
46. Nxc6 {[%clk 0:00:15]}  f2 {[%clk 0:00:24]} 47. Nd4 {[%clk 0:00:09]}  f1=Q {[%clk 0:00:25]} 48. c5 {[%clk 0:00:08]}  Qf4+ {[%clk 0:00:23]}
49. Kd3 {[%clk 0:00:09]}  Qc1 {[%clk 0:00:23]} 50. c6 {[%clk 0:00:09]}  Qb1+ {[%clk 0:00:23]} 51. Kc3 {[%clk 0:00:10]}  Qxa2 {[%clk 0:00:23]}
52. c7 {[%clk 0:00:10]}  Qa6 {[%clk 0:00:24]} 53. b5 {[%clk 0:00:10]}  Qc8 {[%clk 0:00:25]} 54. Kb4 {[%clk 0:00:09]}  Qxc7 {[%clk 0:00:26]}
55. Nc6 {[%clk 0:00:08]}  a6 {[%clk 0:00:26]} 56. Nd4 {[%clk 0:00:08]}  axb5 {[%clk 0:00:27]} 57. Kxb5 {[%clk 0:00:08]}  Qd7+ {[%clk 0:00:28]}
58. Kc4 {[%clk 0:00:09]}  Qxd4+ {[%clk 0:00:29]} 0-1

[Event "2026 Biel Blitz Open"]
[Site "Biel, CH"]
[Date "2026.07.19"]
[Round "10"]
[White "Jud, Marc"]
[Black "Mousseau, Leo"]
[Result "1-0"]
[Board "51"]
[TimeControl "180+2"]
[WhiteFideId "1309099"]
[BlackFideId "34666931"]
[WhiteElo "1946"]
[BlackElo "1714"]
[WhiteClock "0:00:58"]
[BlackClock "0:00:30"]
[Variant "Standard"]
[EndDate "2026.07.19"]
[EndTime "15:01:32"]

1. d4 {[%clk 0:03:04]}  Nf6 {[%clk 0:03:01]} 2. Nf3 {[%clk 0:03:05]}  g6 {[%clk 0:03:03]} 3. c4 {[%clk 0:03:06]}  Bg7 {[%clk 0:03:04]}
4. Nc3 {[%clk 0:03:07]}  O-O {[%clk 0:03:04]} 5. g3 {[%clk 0:03:09]}  d6 {[%clk 0:03:05]} 6. Bg2 {[%clk 0:03:10]}  Nbd7 {[%clk 0:03:06]}
7. O-O {[%clk 0:03:08]}  e5 {[%clk 0:03:03]} 8. dxe5 {[%clk 0:03:06]}  dxe5 {[%clk 0:03:00]} 9. e4 {[%clk 0:03:07]}  c6 {[%clk 0:03:00]}
10. h3 {[%clk 0:03:04]}  Re8 {[%clk 0:02:56]} 11. Be3 {[%clk 0:03:05]}  Qc7 {[%clk 0:02:55]} 12. Qe2 {[%clk 0:03:05]}  Bf8 {[%clk 0:02:49]}
13. Rfd1 {[%clk 0:02:59]}  Nc5 {[%clk 0:02:48]} 14. Nd2 {[%clk 0:02:45]}  a5 {[%clk 0:02:45]} 15. a3 {[%clk 0:02:43]}  a4 {[%clk 0:02:38]}
16. Bg5 {[%clk 0:02:37]}  Bg7 {[%clk 0:02:24]} 17. Qe3 {[%clk 0:02:20]}  Ne6 {[%clk 0:02:10]} 18. Bh6 {[%clk 0:02:15]}  Nd4 {[%clk 0:02:05]}
19. Bxg7 {[%clk 0:02:11]}  Kxg7 {[%clk 0:01:58]} 20. Rac1 {[%clk 0:02:12]}  Be6 {[%clk 0:01:55]} 21. f4 {[%clk 0:02:03]}  Red8 {[%clk 0:01:32]}
22. Nf3 {[%clk 0:02:02]}  Nxf3+ {[%clk 0:01:22]} 23. Qxf3 {[%clk 0:01:59]}  exf4 {[%clk 0:01:18]} 24. gxf4 {[%clk 0:01:47]}  Bxc4 {[%clk 0:01:07]}
25. f5 {[%clk 0:01:36]}  Bb3 {[%clk 0:01:00]} 26. Rf1 {[%clk 0:01:28]}  Bc4 {[%clk 0:00:43]} 27. Rf2 {[%clk 0:01:21]}  Rd3 {[%clk 0:00:40]}
28. e5 {[%clk 0:00:59]}  Rxf3 {[%clk 0:00:39]} 29. exf6+ {[%clk 0:01:00]}  Kxf6 {[%clk 0:00:35]} 30. Rxf3 {[%clk 0:00:58]}  Bd5 {[%clk 0:00:30]}
31. Nxd5+ {[%clk 0:00:58]} 1-0

[Event "2026 Biel Blitz Open"]
[Site "Biel, CH"]
[Date "2026.07.19"]
[Round "10"]
[White "Baury, Noe"]
[Black "Mintz, Nathan"]
[Result "1-0"]
[Board "53"]
[TimeControl "180+2"]
[WhiteFideId "651086867"]
[BlackFideId "30995540"]
[WhiteElo "1886"]
[BlackElo "1608"]
[WhiteClock "0:01:21"]
[BlackClock "0:00:04"]
[Variant "Standard"]
[EndDate "2026.07.19"]
[EndTime "14:58:01"]

1. e4 {[%clk 0:03:01]}  c5 {[%clk 0:03:03]} 2. d4 {[%clk 0:03:01]}  cxd4 {[%clk 0:03:03]} 3. Qxd4 {[%clk 0:03:01]}  Nc6 {[%clk 0:03:04]}
4. Qd3 {[%clk 0:03:07]}  Nf6 {[%clk 0:02:49]} 5. Nc3 {[%clk 0:03:08]}  d6 {[%clk 0:02:47]} 6. Nf3 {[%clk 0:03:08]}  g6 {[%clk 0:02:41]}
7. Nd5 {[%clk 0:03:09]}  Bg7 {[%clk 0:02:38]} 8. c3 {[%clk 0:03:11]}  O-O {[%clk 0:02:30]} 9. Bg5 {[%clk 0:03:11]}  Nxd5 {[%clk 0:02:22]}
10. exd5 {[%clk 0:03:12]}  Ne5 {[%clk 0:02:14]} 11. Nxe5 {[%clk 0:03:12]}  Bxe5 {[%clk 0:02:10]} 12. Be2 {[%clk 0:03:14]}  Bf5 {[%clk 0:02:01]}
13. Qd2 {[%clk 0:03:14]}  Bg7 {[%clk 0:02:01]} 14. O-O {[%clk 0:03:13]}  Qc7 {[%clk 0:01:48]} 15. a4 {[%clk 0:03:11]}  Rac8 {[%clk 0:01:39]}
16. a5 {[%clk 0:03:02]}  Rfe8 {[%clk 0:01:30]} 17. Rfe1 {[%clk 0:02:54]}  Bd7 {[%clk 0:01:19]} 18. a6 {[%clk 0:02:47]}  b5 {[%clk 0:01:13]}
19. Bf3 {[%clk 0:02:38]}  e6 {[%clk 0:00:53]} 20. Bf4 {[%clk 0:02:28]}  e5 {[%clk 0:00:48]} 21. Bh6 {[%clk 0:02:20]}  f5 {[%clk 0:00:47]}
22. Bd1 {[%clk 0:02:11]}  e4 {[%clk 0:00:42]} 23. h4 {[%clk 0:02:05]}  Qc4 {[%clk 0:00:26]} 24. Be2 {[%clk 0:01:56]}  Qc7 {[%clk 0:00:26]}
25. h5 {[%clk 0:01:55]}  Rb8 {[%clk 0:00:21]} 26. Qg5 {[%clk 0:01:50]}  Bxh6 {[%clk 0:00:09]} 27. Qxh6 {[%clk 0:01:50]}  Qc5 {[%clk 0:00:05]}
28. hxg6 {[%clk 0:01:47]}  hxg6 {[%clk 0:00:05]} 29. Qxg6+ {[%clk 0:01:48]}  Kh8 {[%clk 0:00:03]} 30. Bh5 {[%clk 0:01:32]}  e3 {[%clk 0:00:03]}
31. fxe3 {[%clk 0:01:21]}  Rxe3 {[%clk 0:00:03]} 32. Qh6+ {[%clk 0:01:22]}  Kg8 {[%clk 0:00:04]} 33. Qxe3 {[%clk 0:01:21]} 1-0

[Event "2026 Biel Blitz Open"]
[Site "Biel, CH"]
[Date "2026.07.19"]
[Round "10"]
[White "Materia, Mario"]
[Black "Draude, Theo"]
[Result "1-0"]
[Board "54"]
[TimeControl "180+2"]
[WhiteFideId "651082241"]
[BlackFideId "34623809"]
[WhiteElo "1723"]
[BlackElo "1861"]
[WhiteClock "0:00:15"]
[BlackClock "0:00:07"]
[Variant "Standard"]
[EndDate "2026.07.19"]
[EndTime "15:01:41"]

1. d4 {[%clk 0:03:02]}  a6 {[%clk 0:03:04]} 2. Nf3 {[%clk 0:03:02]}  e6 {[%clk 0:03:04]} 3. c4 {[%clk 0:03:03]}  b5 {[%clk 0:03:03]}
4. e3 {[%clk 0:02:58]}  bxc4 {[%clk 0:03:00]} 5. Bxc4 {[%clk 0:02:59]}  d5 {[%clk 0:03:01]} 6. Bd3 {[%clk 0:02:58]}  c5 {[%clk 0:02:59]}
7. Nc3 {[%clk 0:02:50]}  cxd4 {[%clk 0:02:57]} 8. exd4 {[%clk 0:02:50]}  Nf6 {[%clk 0:02:56]} 9. Bg5 {[%clk 0:02:47]}  Be7 {[%clk 0:02:55]}
10. O-O {[%clk 0:02:44]}  O-O {[%clk 0:02:55]} 11. Qc2 {[%clk 0:02:29]}  h6 {[%clk 0:02:56]} 12. Bh4 {[%clk 0:02:23]}  Nc6 {[%clk 0:02:57]}
13. a3 {[%clk 0:02:16]}  Bd7 {[%clk 0:02:48]} 14. Na4 {[%clk 0:02:07]}  Qa5 {[%clk 0:02:40]} 15. b4 {[%clk 0:01:49]}  Qc7 {[%clk 0:02:27]}
16. Bg3 {[%clk 0:01:47]}  Qa7 {[%clk 0:02:16]} 17. Nc5 {[%clk 0:01:45]}  Bxc5 {[%clk 0:02:14]} 18. dxc5 {[%clk 0:01:40]}  Rfe8 {[%clk 0:02:10]}
19. Rfe1 {[%clk 0:01:38]}  Qb7 {[%clk 0:02:02]} 20. Ne5 {[%clk 0:01:37]}  Nxe5 {[%clk 0:02:01]} 21. Bxe5 {[%clk 0:01:35]}  Ng4 {[%clk 0:01:55]}
22. Rac1 {[%clk 0:01:28]}  Bb5 {[%clk 0:01:45]} 23. Bxb5 {[%clk 0:01:20]}  axb5 {[%clk 0:01:45]} 24. Bb2 {[%clk 0:01:15]}  Qc7 {[%clk 0:01:28]}
25. g3 {[%clk 0:00:57]}  e5 {[%clk 0:01:03]} 26. Qf5 {[%clk 0:00:53]}  Qc8 {[%clk 0:00:54]} 27. Qxc8 {[%clk 0:00:49]}  Raxc8 {[%clk 0:00:55]}
28. h3 {[%clk 0:00:50]}  Nf6 {[%clk 0:00:52]} 29. Rxe5 {[%clk 0:00:46]}  Rxe5 {[%clk 0:00:47]} 30. Bxe5 {[%clk 0:00:46]}  Ne4 {[%clk 0:00:49]}
31. Rd1 {[%clk 0:00:44]}  Ra8 {[%clk 0:00:36]} 32. Rxd5 {[%clk 0:00:37]}  Rxa3 {[%clk 0:00:38]} 33. c6 {[%clk 0:00:37]}  Nc3 {[%clk 0:00:10]}
34. Rd8+ {[%clk 0:00:33]}  Kh7 {[%clk 0:00:14]} 35. c7 {[%clk 0:00:28]}  Ne2+ {[%clk 0:00:07]} 36. Kg2 {[%clk 0:00:15]} 1-0

[Event "2026 Biel Blitz Open"]
[Site "Biel, CH"]
[Date "2026.07.19"]
[Round "11"]
[White "Bu, Xiangzhi"]
[Black "Savitha Shri B"]
[Result "1-0"]
[Board "1"]
[TimeControl "180+2"]
[WhiteFideId "8601445"]
[BlackFideId "35061887"]
[WhiteElo "2719"]
[BlackElo "2161"]
[WhiteTitle "GM"]
[BlackTitle "IM"]
[WhiteClock "0:00:21"]
[BlackClock "0:00:18"]
[Variant "Standard"]
[EndDate "2026.07.19"]
[EndTime "15:25:51"]

1. Nf3 {[%clk 0:03:02]}  c5 {[%clk 0:03:03]} 2. c4 {[%clk 0:03:03]}  Nc6 {[%clk 0:03:04]} 3. Nc3 {[%clk 0:03:04]}  Nf6 {[%clk 0:03:04]}
4. g3 {[%clk 0:03:05]}  d5 {[%clk 0:03:02]} 5. cxd5 {[%clk 0:03:05]}  Nxd5 {[%clk 0:03:03]} 6. Bg2 {[%clk 0:03:06]}  Nc7 {[%clk 0:03:04]}
7. a3 {[%clk 0:03:07]}  e5 {[%clk 0:03:05]} 8. b4 {[%clk 0:03:05]}  cxb4 {[%clk 0:03:05]} 9. axb4 {[%clk 0:03:07]}  Bxb4 {[%clk 0:03:04]}
10. Nxe5 {[%clk 0:03:07]}  Bxc3 {[%clk 0:02:22]} 11. Nxc6 {[%clk 0:03:00]}  bxc6 {[%clk 0:02:22]} 12. dxc3 {[%clk 0:02:47]}  Qxd1+ {[%clk 0:02:16]}
13. Kxd1 {[%clk 0:02:48]}  Bd7 {[%clk 0:01:47]} 14. Ba3 {[%clk 0:02:26]}  O-O-O {[%clk 0:01:41]} 15. Kc2 {[%clk 0:02:23]}  Bf5+ {[%clk 0:01:37]}
16. e4 {[%clk 0:02:24]}  Be6 {[%clk 0:01:38]} 17. Bc5 {[%clk 0:02:21]}  a6 {[%clk 0:01:34]} 18. Ra4 {[%clk 0:01:59]}  Rd7 {[%clk 0:01:23]}
19. Rb1 {[%clk 0:01:55]}  Rhd8 {[%clk 0:01:17]} 20. Be3 {[%clk 0:01:56]}  Rd6 {[%clk 0:00:51]} 21. Bf4 {[%clk 0:01:46]}  Rd3 {[%clk 0:00:45]}
22. Bf1 {[%clk 0:01:43]}  Rd1 {[%clk 0:00:43]} 23. Rxd1 {[%clk 0:01:22]}  Rxd1 {[%clk 0:00:44]} 24. Bxa6+ {[%clk 0:01:23]}  Nxa6 {[%clk 0:00:43]}
25. Rxa6 {[%clk 0:01:24]}  Rf1 {[%clk 0:00:36]} 26. Be3 {[%clk 0:01:20]}  Kc7 {[%clk 0:00:37]} 27. Bc5 {[%clk 0:01:16]}  Rh1 {[%clk 0:00:36]}
28. h4 {[%clk 0:01:01]}  Re1 {[%clk 0:00:37]} 29. Kd3 {[%clk 0:00:53]}  Rd1+ {[%clk 0:00:33]} 30. Ke3 {[%clk 0:00:52]}  Rc1 {[%clk 0:00:34]}
31. Bd4 {[%clk 0:00:52]}  g6 {[%clk 0:00:36]} 32. Ra7+ {[%clk 0:00:53]}  Kc8 {[%clk 0:00:32]} 33. Kf4 {[%clk 0:00:50]}  Rc2 {[%clk 0:00:31]}
34. f3 {[%clk 0:00:48]}  Kb8 {[%clk 0:00:32]} 35. Re7 {[%clk 0:00:49]}  Rg2 {[%clk 0:00:23]} 36. g4 {[%clk 0:00:44]}  Rh2 {[%clk 0:00:21]}
37. Be5+ {[%clk 0:00:35]}  Kc8 {[%clk 0:00:17]} 38. Kg3 {[%clk 0:00:32]}  Rd2 {[%clk 0:00:09]} 39. Rc7+ {[%clk 0:00:32]}  Kd8 {[%clk 0:00:10]}
40. Rxc6 {[%clk 0:00:33]}  Rd3 {[%clk 0:00:12]} 41. Kf4 {[%clk 0:00:31]}  Kd7 {[%clk 0:00:12]} 42. Rc5 {[%clk 0:00:32]}  Bb3 {[%clk 0:00:10]}
43. c4 {[%clk 0:00:23]}  Bd1 {[%clk 0:00:11]} 44. Rd5+ {[%clk 0:00:24]}  Rxd5 {[%clk 0:00:10]} 45. cxd5 {[%clk 0:00:26]}  Be2 {[%clk 0:00:11]}
46. h5 {[%clk 0:00:24]}  Ke7 {[%clk 0:00:11]} 47. h6 {[%clk 0:00:19]}  Kd7 {[%clk 0:00:12]} 48. Ke3 {[%clk 0:00:19]}  Bd1 {[%clk 0:00:14]}
49. Bf6 {[%clk 0:00:18]}  Kd6 {[%clk 0:00:13]} 50. Kf4 {[%clk 0:00:19]}  Kd7 {[%clk 0:00:14]} 51. Kg3 {[%clk 0:00:20]}  Kd6 {[%clk 0:00:15]}
52. g5 {[%clk 0:00:18]}  Be2 {[%clk 0:00:16]} 53. Kf2 {[%clk 0:00:19]}  Bd1 {[%clk 0:00:17]} 54. Ke3 {[%clk 0:00:20]}  Kd7 {[%clk 0:00:19]}
55. f4 {[%clk 0:00:20]}  Kd6 {[%clk 0:00:19]} 56. Bc3 {[%clk 0:00:21]}  Kd7 {[%clk 0:00:18]} 57. Kd4 {[%clk 0:00:22]}  Bf3 {[%clk 0:00:19]}
58. Ke5 {[%clk 0:00:23]}  Ke7 {[%clk 0:00:20]} 59. Bb4+ {[%clk 0:00:24]}  Ke8 {[%clk 0:00:21]} 60. d6 {[%clk 0:00:21]}  Kd7 {[%clk 0:00:18]}
61. Kf6 {[%clk 0:00:21]}  Bxe4 {[%clk 0:00:18]} 62. Kg7 {[%clk 0:00:21]} 1-0

[Event "2026 Biel Blitz Open"]
[Site "Biel, CH"]
[Date "2026.07.19"]
[Round "11"]
[White "Ghosh, Diptayan"]
[Black "Shukhman, Anna"]
[Result "1/2-1/2"]
[Board "2"]
[TimeControl "180+2"]
[WhiteFideId "5045207"]
[BlackFideId "54180058"]
[WhiteElo "2530"]
[BlackElo "2392"]
[WhiteTitle "GM"]
[BlackTitle "WGM"]
[WhiteClock "0:00:16"]
[BlackClock "0:00:18"]
[Variant "Standard"]
[EndDate "2026.07.19"]
[EndTime "15:24:05"]

1. c4 {[%clk 0:03:02]}  e6 {[%clk 0:03:03]} 2. Nc3 {[%clk 0:03:03]}  d5 {[%clk 0:03:05]} 3. d4 {[%clk 0:03:04]}  Nf6 {[%clk 0:03:06]}
4. cxd5 {[%clk 0:03:04]}  exd5 {[%clk 0:03:07]} 5. Bg5 {[%clk 0:03:05]}  Be6 {[%clk 0:03:08]} 6. e3 {[%clk 0:03:05]}  Nbd7 {[%clk 0:03:09]}
7. Bd3 {[%clk 0:03:04]}  c6 {[%clk 0:03:10]} 8. f3 {[%clk 0:03:03]}  Be7 {[%clk 0:03:10]} 9. Nge2 {[%clk 0:03:00]}  Nh5 {[%clk 0:03:11]}
10. Bxe7 {[%clk 0:03:00]}  Qxe7 {[%clk 0:03:11]} 11. g4 {[%clk 0:02:51]}  Nhf6 {[%clk 0:02:56]} 12. Qd2 {[%clk 0:02:51]}  O-O-O {[%clk 0:02:54]}
13. O-O-O {[%clk 0:02:51]}  Ne8 {[%clk 0:02:50]} 14. Kb1 {[%clk 0:02:47]}  Kb8 {[%clk 0:02:51]} 15. Rc1 {[%clk 0:02:45]}  Nb6 {[%clk 0:02:43]}
16. Nf4 {[%clk 0:02:41]}  Bc8 {[%clk 0:02:32]} 17. b3 {[%clk 0:02:25]}  Nd6 {[%clk 0:02:29]} 18. a4 {[%clk 0:02:18]}  Rhe8 {[%clk 0:02:00]}
19. Rhe1 {[%clk 0:02:18]}  g5 {[%clk 0:01:49]} 20. Nh5 {[%clk 0:02:18]}  f5 {[%clk 0:01:48]} 21. h3 {[%clk 0:02:19]}  Qf7 {[%clk 0:01:33]}
22. Rf1 {[%clk 0:02:08]}  Nd7 {[%clk 0:01:17]} 23. Qh2 {[%clk 0:02:03]}  Nf6 {[%clk 0:01:17]} 24. Nxf6 {[%clk 0:01:40]}  Qxf6 {[%clk 0:01:18]}
25. Rce1 {[%clk 0:01:34]}  f4 {[%clk 0:01:16]} 26. exf4 {[%clk 0:01:06]}  Qxd4 {[%clk 0:01:17]} 27. Kc2 {[%clk 0:01:05]}  gxf4 {[%clk 0:00:50]}
28. Bxh7 {[%clk 0:00:50]}  Qb4 {[%clk 0:00:33]} 29. Qd2 {[%clk 0:00:41]}  Rh8 {[%clk 0:00:34]} 30. Bd3 {[%clk 0:00:33]}  Rxh3 {[%clk 0:00:33]}
31. Ne2 {[%clk 0:00:31]}  Qa3 {[%clk 0:00:27]} 32. Nxf4 {[%clk 0:00:17]}  Rh2 {[%clk 0:00:28]} 33. Ne2 {[%clk 0:00:16]}  Qa2+ {[%clk 0:00:17]}
34. Kc1 {[%clk 0:00:13]}  Qa1+ {[%clk 0:00:17]} 35. Kc2 {[%clk 0:00:14]}  Qa2+ {[%clk 0:00:17]} 36. Kc1 {[%clk 0:00:16]}  Qa1+ {[%clk 0:00:18]} 1/2-1/2